fUSD/lending_fUSD_20240817
["ID","MTS","AMOUNT","RATE_DAILY","PERIOD"]
[335164681,1723914640308,-3057.24554161,0.000108,2]
[335164682,1723914640323,-272.61475839,0.000108,2]
[335164683,1723914640332,-3843.03346816,0.000108,2]
[335164684,1723914640345,-298.07323466,0.000108,2]
[335164685,1723914640359,-848.71459718,0.000108,2]
[335164686,1723914640368,-388.79,0.000108,2]
[335164687,1723914640377,-339.29040155,0.000108,2]
[335164688,1723914640389,-223.22889845,0.000108,2]
[335164689,1723914640399,-2500.0,0.000108,2]
[335164690,1723914640408,-630.48,0.000108,2]
[335164691,1723914640418,-197.67471073,0.00010823,2]
[335164692,1723914640433,-258.17818101,0.00010823,2]
[335164693,1723914640443,-601.65421845,0.00010852,2]
[335164694,1723914640452,-760.3907085,0.00010852,2]
[335164695,1723914640461,-526.89163581,0.00010861,2]
[335164696,1723914640471,-510.89036362,0.00010862,2]
[335164697,1723914640482,-120.36676793,0.00010862,2]
[335164698,1723914640493,-302.98,0.00010862,2]
[335164699,1723914640506,-9.13155676,0.00010862,2]
[335164700,1723914640516,-367.87511774,0.00010888,2]
[335164701,1723914640526,-197.1386879,0.00010888,2]
[335164702,1723914640535,-203.41395605,0.00010888,2]
[335164703,1723914640546,-600.74422133,0.00010888,2]
[335164704,1723914640555,-155.0,0.00010888,2]
[335164705,1723914640566,-155.16643418,0.00010888,2]
[335164706,1723914640575,-327.96729204,0.00010888,2]
[335164707,1723914640587,-37.83450833,0.00010888,2]
[335164708,1723914640597,-255.19609183,0.00010888,2]
[335164709,1723914640607,-164.40260801,0.00010888,2]
[335164710,1723914640617,-155.0,0.0001089,2]
[335164711,1723914640626,-997.17479183,0.00010894,2]
[335164712,1723914640639,-1043.21965598,0.00010894,2]
[335164713,1723914640651,-821.55275219,0.00010894,2]
[335164714,1723914640662,-957.48,0.00010899,2]
[335164715,1723914640672,-1906.38716962,0.00010899,2]
[335164716,1723914640682,-1906.38716962,0.00010899,2]
[335164717,1723914640691,-329.90297653,0.00010899,2]
[335164718,1723914640701,-379.92281536,0.00010899,2]
[335164719,1723914640713,-1196.56137773,0.00010899,2]
[335164720,1723914640723,-1906.38716962,0.00010899,2]
[335164721,1723914640733,-1906.38716962,0.00010899,2]
[335164722,1723914640742,-1906.38716962,0.00010899,2]
[335164723,1723914640751,-1906.38716962,0.00010899,2]
[335164724,1723914640760,-1065.25433802,0.00010899,2]
[335164725,1723914640775,-522.77982189,0.00010899,2]
[335164726,1723914640786,-318.35300971,0.00010899,2]
[335164727,1723914640796,-26.27255458,0.00010899,2]
[335164728,1723914640807,-676.47483956,0.00010899,2]
[335164729,1723914640819,-1203.63977548,0.00010899,2]
[335164730,1723914640829,-528.91996067,0.00010899,2]
[335164731,1723914640839,-348.91410208,0.00010899,2]
[335164732,1723914640849,-238.78046865,0.00010899,2]
[335164733,1723914640859,-328.2488375,0.00010899,2]
[335164734,1723914640868,-1340.32,0.00010899,2]
[335164735,1723914640878,-8715.48,0.00010899,2]
[335164736,1723914640887,-500.0,0.000109,2]
[335164737,1723914640897,-25625.5411661,0.000109,2]
[335164738,1723914640948,-632.910608,0.000109,2]
[335164739,1723914640959,-1749.79715678,0.000109,2]
[335164740,1723914640974,-1125.95213341,0.000109,2]
[335164741,1723914640986,-1931.68728118,0.000109,2]
[335164742,1723914640999,-284.0,0.000109,2]
[335164914,1723914643198,-357.45302385,0.0001089,2]
[335164916,1723914643210,-236.34424982,0.0001089,2]
[335164918,1723914643220,-433.44465453,0.000109,2]
[335164920,1723914643230,-354.0380718,0.000109,2]
[335164949,1723914644365,-21023.83127139,0.000109,2]
[335164950,1723914644385,-5130.95572728,0.000109,2]
[335164951,1723914644396,-512.05939906,0.000109,2]
[335164953,1723914644408,-1951.24999987,0.000109,2]
[335164955,1723914644420,-2426.2611306,0.000109,2]
[335164956,1723914644430,-1000.0,0.000109,2]
[335164957,1723914644440,-2027.19506651,0.000109,2]
[335164958,1723914644451,-1650.12339965,0.000109,2]
[335164959,1723914644462,-1039.9999,0.000109,2]
[335164960,1723914644473,-711.66079676,0.000109,2]
[335164961,1723914644485,-1507.29,0.000109,2]
[335164962,1723914644496,-12534.53553708,0.000109,2]
[335164963,1723914644506,-2166.30342316,0.000109,2]
[335164964,1723914644523,-877.60613837,0.000109,2]
[335164965,1723914644534,-648.77378704,0.000109,2]
[335164966,1723914645443,-600.34827093,0.000109,2]
[335164967,1723914645454,-498.7999998,0.000109,2]
[335164968,1723914645467,-2721.87978134,0.000109,2]
[335164969,1723914645479,-4650.0,0.000109,2]
[335164970,1723914645490,-8622.66212954,0.000109,2]
[335164971,1723914645502,-3953.81927455,0.000109,2]
[335164972,1723914645516,-1448.63415379,0.000109,2]
[335164973,1723914645529,-666.41,0.000109,2]
[335164974,1723914645540,-167008.74674148,0.000109,2]
[335164975,1723914645550,-152.79080492,0.000109,2]
[335164976,1723914645560,-172.00474581,0.000109,2]
[335164977,1723914645569,-1026.30342348,0.000109,2]
[335164978,1723914645578,-1906.38716962,0.000109,2]
[335164979,1723914645588,-500.0,0.00010958,2]
[335164980,1723914645597,-383.6206245,0.00010958,2]
[335164981,1723914645607,-501.49882417,0.00010958,2]
[335164982,1723914645617,-150.0,0.00010959,2]
[335164983,1723914645627,-2000.0,0.00010959,2]
[335164984,1723914645636,-250.0,0.00010959,2]
[335164985,1723914645646,-200.0,0.00010973,2]
[335164986,1723914645655,-200.0,0.00010973,2]
[335164987,1723914645665,-309.42433542,0.00010979,2]
[335164988,1723914645675,-263.2636356,0.0001099,2]
[335164989,1723914645684,-263.2636356,0.0001099,2]
[335164990,1723914645694,-263.2636356,0.0001099,2]
[335164991,1723914645704,-1317.4082511,0.00010995,2]
[335164992,1723914645714,-21952.8564876,0.00010995,2]
[335164993,1723914645723,-310.6208064,0.00010995,2]
[335164994,1723914645732,-2792.31920982,0.00010997,2]
[335164995,1723914645743,-550.0,0.00011,2]
[335164996,1723914645753,-59873.0715908,0.00011,2]
[335164997,1723914645766,-103711.81559252,0.00011,2]
[335165012,1723914646232,-508.86299617,0.00011,2]
[335165014,1723914646244,-3110.28634999,0.00011,2]
[335165016,1723914646262,-3888.80813399,0.00011,2]
[335165018,1723914646274,-4150.72460357,0.00011,2]
[335165019,1723914646300,-5917.9735355,0.00011,2]
[335165020,1723914646361,-28981.58232017,0.00011,2]
[335165021,1723914646373,-5360.8,0.00011,2]
[335165022,1723914646420,-573.17621082,0.00011,2]
[335165023,1723914646432,-599.38775637,0.00011,2]
[335165024,1723914646482,-604.0,0.00011,2]
[335165026,1723914653500,150.55,8.581e-05,2]
[335165036,1723914968570,9103.86732198,9.916e-05,2]
[335165037,1723914968592,3448.13267802,9.916e-05,2]
[335165038,1723914976816,500.0,8.22e-05,2]
[335165039,1723914977411,500.0,8.22e-05,2]
[335165040,1723914977974,500.0,8.22e-05,2]
[335165041,1723914980818,500.0,8.22e-05,2]
[335165042,1723914982480,438.7702881,9.943e-05,2]
[335165043,1723915007659,155.0,9.943e-05,2]
[335165044,1723915029148,173.85,9.899e-05,2]
[335165045,1723915029269,1310.90590579,9.943e-05,2]
[335165046,1723915032320,297.60389455,9.943e-05,2]
[335165047,1723915045694,500.0,8.22e-05,2]
[335165048,1723915047455,500.0,9.59e-05,2]
[335165049,1723915051045,332.32,9.926e-05,2]
[335165050,1723915059270,843.41723354,9.943e-05,2]
[335165051,1723915059290,467.48867225,9.943e-05,2]
[335165052,1723915061283,270.58164358,9.943e-05,2]
[335165054,1723915073299,522.16077607,9.943e-05,2]
[335165055,1723915076058,500.0,8.22e-05,2]
[335165056,1723915079326,348.22217889,9.943e-05,2]
[335165057,1723915080170,500.0,8.22e-05,2]
[335165058,1723915081775,500.0,9.59e-05,2]
[335165059,1723915084568,500.0,8.22e-05,2]
[335165060,1723915086166,500.0,9.59e-05,2]
[335165061,1723915086532,700.0,8.22e-05,2]
[335165062,1723915088119,700.0,9.59e-05,2]
[335165063,1723915105573,363.26,8.219e-05,2]
[335165064,1723915125275,1310.90590579,9.59e-05,2]
[335165065,1723915136924,200.0,9.915e-05,2]
[335165066,1723915148927,340.91219285,9.943e-05,2]
[335165067,1723915170672,325.33,9.912e-05,2]
[335165068,1723915200794,1951.13863057,9.937e-05,2]
[335165069,1723915200815,171.76744243,9.937e-05,2]
[335165070,1723915203778,1925.52,9.919e-05,2]
[335165071,1723915206319,1310.90590579,9.943e-05,2]
[335165072,1723915212697,155.0,9.943e-05,2]
[335165073,1723915281905,403.59,9.913e-05,2]
[335165075,1723915306293,1310.90590579,9.943e-05,2]
[335165077,1723915416290,1240.20223278,9.943e-05,2]
[335165078,1723915477784,3482.10851321,9.888e-05,2]
[335165079,1723915477805,10000.0,9.888e-05,2]
[335165080,1723915477825,5195.93148679,9.888e-05,2]
[335165081,1723915501084,176.71,9.874e-05,2]
[335165082,1723915507500,166.16,9.896e-05,2]
[335165086,1723915589977,411.007609,9.948e-05,2]
[335165087,1723915593474,3047.95521436,9.896e-05,2]
[335165088,1723915599499,1002.23568985,9.896e-05,2]
[335165089,1723915599519,305.94896604,9.896e-05,2]
[335165090,1723915627443,664.80982149,9.896e-05,2]
[335165096,1723915630526,264.37107792,9.896e-05,2]
[335165099,1723915638269,500.0,8.22e-05,2]
[335165100,1723915638491,500.0,8.22e-05,2]
[335165101,1723915640100,500.0,9.59e-05,2]
[335165107,1723915655035,309.42433542,9.943e-05,2]
[335165108,1723915662641,500.0,8.22e-05,2]
[335165109,1723915662949,500.0,8.22e-05,2]
[335165110,1723915668584,600.0,8.22e-05,2]
[335165111,1723915670238,600.0,9.59e-05,2]
[335165139,1723915728570,162.67,9.878e-05,2]
[335165140,1723915737012,421.74891164,9.943e-05,2]
[335165144,1723915759758,677.12,9.919e-05,2]
[335165145,1723915794525,1358.55,9.916e-05,2]
[335165146,1723915795788,613.4,8.219e-05,2]
[335165167,1723915832337,-218.91005949,9.988e-05,2]
[335165168,1723915832347,-466.14418786,9.988e-05,2]
[335165169,1723915832358,-58.85548942,9.988e-05,2]
[335165170,1723915832368,-489.30772642,0.0001,2]
[335165171,1723915832455,-60.69227358,0.0001,2]
[335165172,1723915832465,-182.48604826,0.0001,2]
[335165173,1723915832474,-211.0133722,0.0001,2]
[335165174,1723915832483,-300.0,0.000103,2]
[335165175,1723915832492,-1282.77747064,0.00010301,2]
[335165176,1723915832576,-683.26256191,0.00010301,2]
[335165206,1723915838534,-8033.95996745,0.00010301,2]
[335165207,1723915838544,-8634.6348108,0.00010301,2]
[335165208,1723915838554,-181.88317935,0.00010401,2]
[335165209,1723915838563,-186.67,0.00010446,2]
[335165210,1723915838573,-613.4,0.00010471,2]
[335165211,1723915838583,-794.0,0.00010492,2]
[335165212,1723915838592,-421.26,0.000105,2]
[335165213,1723915838602,-834.77,0.000105,2]
[335165214,1723915838612,-421.26,0.000105,2]
[335165215,1723915838621,-5785.76204241,0.000105,5]
[335165216,1723915838634,-1279.7631426,0.000105,5]
[335165217,1723915838647,-4429.47481499,0.000105,5]
[335165219,1723915838657,-415.01059966,0.00010699,2]
[335165221,1723915838667,-155.0,0.00010713,2]
[335165222,1723915838676,-4431.10440928,0.0001072,2]
[335165333,1723915840448,-412.39,0.0001072,2]
[335165334,1723915840510,-128.99539072,0.0001072,2]
[335165335,1723915840698,-150.0,0.00010799,2]
[335165336,1723915840707,-677.14357184,0.000108,2]
[335165337,1723915840718,-19.36845996,0.000108,2]
[335165338,1723915840730,-807.664508,0.000108,2]
[335165339,1723915840741,-308.94361421,0.000108,2]
[335165340,1723915840752,-470.89476816,0.000108,2]
[335165341,1723915840767,-15529.3055932,0.000108,2]
[335165342,1723915840776,-81.54531699,0.000108,2]
[335165343,1723915840787,-339.71468301,0.000108,2]
[335165344,1723915840796,-145.68336879,0.000108,2]
[335165345,1723915840822,-390.22663121,0.000108,2]
[335165346,1723915840831,-93.03103387,0.0001082,2]
[335165365,1723915841304,-1043.96896613,0.0001082,2]
[335165366,1723915841315,-872.092,0.0001082,2]
[335165367,1723915841325,-150.0,0.0001082,2]
[335165368,1723915841335,-556.0,0.0001082,2]
[335165369,1723915841344,-446.978,0.0001082,2]
[335165370,1723915841354,-552.322,0.0001082,2]
[335165371,1723915841363,-207.307,0.0001082,2]
[335165372,1723915841372,-2030.463,0.0001082,2]
[335165373,1723915841381,-272.285,0.0001082,2]
[335165374,1723915841389,-3318.0,0.0001082,2]
[335165375,1723915841399,-1185.0,0.0001082,2]
[335165376,1723915841408,-254.604,0.0001082,2]
[335165377,1723915841417,-642.636,0.0001082,2]
[335165378,1723915841426,-289.0,0.0001082,2]
[335165379,1723915841435,-1543.0,0.0001082,2]
[335165380,1723915841444,-622.0,0.0001082,2]
[335165381,1723915841453,-1385.979,0.0001082,2]
[335165382,1723915841462,-3726.0,0.0001082,2]
[335165383,1723915841471,-5844.0,0.0001082,2]
[335165384,1723915841479,-1289.016,0.0001082,2]
[335165385,1723915841489,-21769.0,0.0001082,2]
[335165386,1723915841499,-2388.15575194,0.00010888,2]
[335165387,1723915841510,-300.0,0.00010899,2]
[335165388,1723915841520,-611.16321968,0.000109,2]
[335165389,1723915841529,-6446.86784326,0.000109,2]
[335165390,1723915841538,-2661.3171976,0.000109,2]
[335165391,1723915841547,-423.10649015,0.000109,2]
[335165392,1723915841557,-162.97553613,0.000109,2]
[335165393,1723915841566,-250.0,0.00010959,2]
[335165394,1723915841575,-422.35,0.00010959,2]
[335165395,1723915841585,-501.5263205,0.0001096,2]
[335165396,1723915841594,-500.0,0.0001096,2]
[335165397,1723915841603,-500.0,0.0001096,2]
[335165398,1723915841612,-500.0,0.0001096,2]
[335165399,1723915841622,-600.0,0.0001096,2]
[335165400,1723915841635,-200.0,0.00010973,2]
[335165401,1723915841647,-200.0,0.00010973,2]
[335165402,1723915841657,-155.28342269,0.00010973,2]
[335165403,1723915841668,-547.05223763,0.00010979,2]
[335165404,1723915841678,-590.17,0.00010984,2]
[335165405,1723915841687,-590.17,0.00010984,2]
[335165406,1723915841696,-590.17,0.00010984,2]
[335165407,1723915841705,-590.17,0.00010984,2]
[335165408,1723915841717,-590.17,0.00010984,2]
[335165409,1723915841726,-590.17,0.00010984,2]
[335165410,1723915841735,-590.17,0.00010984,2]
[335165411,1723915841744,-590.17,0.00010984,2]
[335165412,1723915841754,-590.17,0.00010984,2]
[335165413,1723915841763,-590.17,0.00010984,2]
[335165414,1723915841772,-590.17,0.00010984,2]
[335165415,1723915841781,-590.17,0.00010984,2]
[335165416,1723915841791,-590.17,0.00010984,2]
[335165417,1723915841800,-590.17,0.00010984,2]
[335165418,1723915841809,-590.17,0.00010984,2]
[335165419,1723915841818,-590.17,0.00010984,2]
[335165420,1723915841827,-590.17,0.00010987,2]
[335165421,1723915841835,-590.17,0.00010987,2]
[335165422,1723915841848,-590.17,0.00010988,2]
[335165423,1723915841857,-590.17,0.00010988,2]
[335165424,1723915841866,-590.17,0.00010988,2]
[335165425,1723915841876,-590.17,0.00010988,2]
[335165426,1723915841885,-590.17,0.00010988,2]
[335165427,1723915841894,-590.17,0.00010988,2]
[335165428,1723915841903,-590.17,0.00010988,2]
[335165429,1723915841913,-590.17,0.00010988,2]
[335165430,1723915841923,-590.17,0.00010988,2]
[335165431,1723915841932,-590.17,0.00010988,2]
[335165432,1723915841942,-590.17,0.00010988,2]
[335165433,1723915841951,-590.17,0.00010988,2]
[335165434,1723915841960,-590.17,0.00010988,2]
[335165435,1723915841970,-590.17,0.00010988,2]
[335165436,1723915841980,-590.17,0.00010988,2]
[335165437,1723915841989,-590.17,0.00010988,2]
[335165438,1723915841998,-197.44772672,0.00010988,2]
[335165439,1723915842008,-1201.8721004,0.00010992,2]
[335165440,1723915842016,-1167.6328278,0.00010992,2]
[335165441,1723915842026,-1133.3935552,0.00010992,2]
[335165442,1723915842035,-1099.1542826,0.00010992,2]
[335165443,1723915842044,-1064.91501,0.00010992,2]
[335165444,1723915842053,-31227.0360568,0.00010992,2]
[335165445,1723915842062,-30337.431415,0.00010992,2]
[335165446,1723915842071,-29447.8267731,0.00010992,2]
[335165447,1723915842080,-28558.2221313,0.00010992,2]
[335165448,1723915842089,-27668.6174894,0.00010992,2]
[335165449,1723915842098,-11239.0681246,0.00010994,2]
[335165450,1723915842107,-951.6509213,0.00010994,2]
[335165451,1723915842116,-4052.2818049,0.00010994,2]
[335165452,1723915842125,-259.9792209,0.00010994,2]
[335165453,1723915842134,-470.48172884,0.00010994,2]
[335165454,1723915842143,-1236.111373,0.00010994,2]
[335165455,1723915842153,-32116.6406986,0.00010994,2]
[335165456,1723915842162,-3490.39901232,0.00010997,2]
[335165457,1723915842172,-11008.7418708,0.00010998,2]
[335165458,1723915842182,-1100.4208289,0.00010998,2]
[335165459,1723915842191,-4685.7678618,0.00010998,2]
[335165460,1723915842200,-242798.0,0.00010998,2]
[335165461,1723915842209,-150.30944536,0.00010999,2]
[335165462,1723915842218,-1853.75639391,0.00010999,2]
[335165463,1723915842228,-253.5224119,0.00010999,2]
[335165464,1723915842237,-949.36100898,0.00010999,2]
[335165465,1723915842247,-653.85667512,0.00010999,2]
[335165466,1723915842257,-569.0,0.00011,2]
[335165467,1723915842268,-66890.84000299,0.00011,2]
[335165468,1723915842278,-3182114.14548141,0.00011,2]
[335165469,1723915842290,-1179.77,0.00011,2]
[335165470,1723915842301,-614.42952318,0.00011,2]
[335165473,1723915843458,-5980.48427293,0.00011,2]
[335165488,1723915845369,-40202.10488403,0.00011,2]
[335165489,1723915845381,-13669.79673238,0.00011,2]
[335165490,1723915845394,-5759.89368103,0.00011,2]
[335165494,1723915846590,-908.94469596,0.0001082,2]
[335165504,1723915847649,703.3501,9.899e-05,2]
[335165505,1723915853279,291.65836493,9.962e-05,2]
[335165506,1723915858276,526.94842256,9.962e-05,2]
[335165507,1723915858297,277.44821226,9.962e-05,2]
[335165508,1723915860016,9722.55178774,9.962e-05,2]
[335165509,1723915860038,10000.0,9.962e-05,2]
[335165510,1723915860060,677.11892813,9.962e-05,2]
[335165511,1723915860614,194.08966662,9.962e-05,2]
[335165512,1723915884719,155.0,9.962e-05,2]
[335165513,1723915884927,547.52651326,9.962e-05,2]
[335165514,1723915891930,949.36100898,9.962e-05,2]
[335165515,1723915900924,500.0,8.22e-05,2]
[335165516,1723915902911,500.0,9.59e-05,2]
[335165517,1723915908281,500.0,8.22e-05,2]
[335165518,1723915910439,500.0,8.22e-05,2]
[335165524,1723915951818,213.89833661,8.22e-05,2]
[335165525,1723915970476,1775.47152139,9.901e-05,2]
[335165526,1723915978414,409.98940992,8.22e-05,2]
[335165527,1723915987318,157.0119942,9.901e-05,2]
[335165528,1723916017392,500.0,8.22e-05,2]
[335165529,1723916018981,500.0,9.59e-05,2]
[335165531,1723916029617,250.0,9.957e-05,2]
[335165534,1723916038234,1270.18697247,9.963e-05,2]
[335165535,1723916040014,400.34564842,9.963e-05,2]
[335165536,1723916040035,2674.69244652,9.963e-05,2]
[335165537,1723916045100,351.99,9.957e-05,2]
[335165538,1723916090655,1183.64768092,9.901e-05,2]
[335165540,1723916217406,178.67,9.954e-05,2]
[335165541,1723916234131,164.26,7.958e-05,2]
[335165542,1723916269481,458.3,9.947e-05,2]
[335165543,1723916279228,637.74,8.219e-05,2]
[335165544,1723916424657,4350.69987256,9.958e-05,2]
[335165545,1723916424680,10000.0,9.958e-05,2]
[335165546,1723916424702,9549.30012744,9.958e-05,2]
[335165547,1723916497481,250.0,9.93e-05,2]
[335165548,1723916526716,175.99,9.914e-05,2]
[335165549,1723916592361,24.70987256,9.912e-05,2]
[335165550,1723916592381,146.77012744,9.912e-05,2]
[335165555,1723916747816,1269.48338785,9.912e-05,2]
[335165556,1723916751635,295.99,9.922e-05,2]
[335165557,1723916752450,8287.75648471,9.912e-05,2]
[335165558,1723916752472,6205.33174598,9.912e-05,2]
[335165559,1723916772896,-281.0,9.992e-05,2]
[335165560,1723916772918,-580.15,9.993e-05,2]
[335165561,1723916772941,-2367.29536182,9.993e-05,2]
[335165562,1723916772961,-162.76853278,0.0001,2]
[335165563,1723916772983,-550.0,0.0001,2]
[335165564,1723916773005,-637.74,0.00010473,2]
[335165565,1723916789568,309.42433542,0.00010471,2]
[335165566,1723916799664,11.62176998,8.219e-05,2]
[335165567,1723916799687,562.33823002,8.219e-05,2]
[335165568,1723916813269,150.0,9.888e-05,2]
[335165571,1723916840063,425.39773589,9.962e-05,2]
[335165585,1723916872696,2380.5308,9.892e-05,2]
[335165586,1723916882367,276.40148811,9.962e-05,2]
[335165587,1723916882391,992.64708091,9.962e-05,2]
[335165589,1723916924581,7245.47731274,9.962e-05,2]
[335165590,1723916973129,250.0,9.923e-05,2]
[335165591,1723917002466,1511.87560635,9.962e-05,2]
[335165592,1723917002487,10000.0,9.962e-05,2]
[335165593,1723917002507,1312.37155855,9.962e-05,2]
[335165594,1723917003199,498.7,9.915e-05,2]
[335165599,1723917013319,159.09255227,9.962e-05,2]
[335165600,1723917022725,1000.0,9.927e-05,2]
[335165601,1723917026339,693.33525753,9.962e-05,2]
[335165602,1723917029361,1947.2,9.927e-05,2]
[335165612,1723917031577,-155.0,0.00010097,2]
[335165613,1723917031586,-122.9595,0.00010321,2]
[335165614,1723917031654,-416.099319,0.00010321,2]
[335165615,1723917031663,-6023.36271218,0.00010373,2]
[335165616,1723917031672,-573.96,0.00010473,2]
[335165617,1723917031681,-150.0,0.00010767,2]
[335165618,1723917031690,-3010.86458541,0.00010792,2]
[335165619,1723917031702,-1440.43885463,0.00010792,2]
[335165620,1723917031716,-554.63555996,0.00010792,2]
[335165621,1723917031725,-213.4549,0.00010792,2]
[335165622,1723917031735,-177.11433726,0.00010799,2]
[335165623,1723917031755,-627.85298596,0.00010799,2]
[335165624,1723917031767,-195.03267678,0.00010799,2]
[335165625,1723917031777,-511.07763755,0.000108,2]
[335165632,1723917037560,-308.37549499,0.000108,2]
[335165633,1723917037573,-4878.125426,0.000108,2]
[335165634,1723917037583,-150.0,0.00010811,2]
[335165635,1723917037592,-505.22888626,0.00010822,2]
[335165636,1723917037638,-1518.50811374,0.00010822,2]
[335165637,1723917037833,-269.88226092,0.00010822,2]
[335165638,1723917037844,-1273.11773908,0.00010822,2]
[335165639,1723917037854,-1257.0,0.00010822,2]
[335165640,1723917037863,-622.0,0.00010822,2]
[335165642,1723917037872,-812.0,0.00010822,2]
[335165644,1723917037882,-1137.0,0.00010822,2]
[335165646,1723917037892,-150.0,0.00010822,2]
[335165647,1723917037903,-446.0,0.00010822,2]
[335165648,1723917037913,-556.0,0.00010822,2]
[335165649,1723917037922,-150.0,0.00010822,2]
[335165650,1723917037933,-551.0,0.00010822,2]
[335165651,1723917037943,-1896.0,0.00010822,2]
[335165652,1723917037953,-247.0,0.00010822,2]
[335165653,1723917037963,-229.52475097,0.00010822,2]
[335165654,1723917037975,-955.47524903,0.00010822,2]
[335165655,1723917037985,-801.93547728,0.00010822,2]
[335165656,1723917037995,-264.24,0.00010822,2]
[335165657,1723917038007,-2251.82452272,0.00010822,2]
[335165658,1723917038017,-250.0,0.00010822,2]
[335165659,1723917038027,-289.0,0.00010822,2]
[335165660,1723917038037,-9088.57047728,0.00010822,2]
[335165661,1723917038049,-1051.74850456,0.00010822,2]
[335165662,1723917039666,-312.004999,0.00010822,2]
[335165669,1723917039741,-1193.82374993,0.00010822,2]
[335165671,1723917039752,-525.47500002,0.00010822,2]
[335165673,1723917039763,-493.59499996,0.00010822,2]
[335165694,1723917040228,-9103.78226925,0.00010822,2]
[335165696,1723917040238,-266.682,0.00010822,2]
[335165698,1723917040247,-216.0,0.00010822,2]
[335165700,1723917040257,-216.0,0.00010822,2]
[335165702,1723917040266,-5844.0,0.00010822,2]
[335165704,1723917040275,-163.0,0.00010822,2]
[335165706,1723917040284,-209.076,0.00010822,2]
[335165708,1723917040294,-163.909,0.00010822,2]
[335165709,1723917040304,-1205.0,0.00010822,2]
[335165711,1723917040312,-150.07,0.00010822,2]
[335165713,1723917040324,-150.0,0.00010822,2]
[335165715,1723917040333,-200.0,0.00010822,2]
[335165717,1723917040343,-3726.0,0.00010822,2]
[335165719,1723917040353,-155.518,0.00010822,2]
[335165721,1723917040363,-1673.0,0.00010822,2]
[335165723,1723917040373,-150.166,0.00010822,2]
[335165725,1723917040382,-389.51,0.00010882,2]
[335165727,1723917040392,-389.51,0.00010882,2]
[335165729,1723917040402,-389.51,0.00010882,2]
[335165731,1723917040411,-389.51,0.00010882,2]
[335165733,1723917040421,-522.3322,0.00010888,2]
[335165735,1723917040430,-389.51,0.00010889,2]
[335165737,1723917040440,-389.51,0.00010889,2]
[335165739,1723917040450,-389.51,0.00010889,2]
[335165741,1723917040459,-389.51,0.00010889,2]
[335165743,1723917040469,-389.51,0.00010889,2]
[335165745,1723917040478,-389.51,0.0001089,2]
[335165747,1723917040487,-389.51,0.0001089,2]
[335165749,1723917040497,-389.51,0.0001089,2]
[335165751,1723917040507,-389.51,0.0001089,2]
[335165753,1723917040517,-389.51,0.0001089,2]
[335165755,1723917040527,-389.51,0.0001089,2]
[335165758,1723917040537,-389.51,0.0001089,2]
[335165760,1723917040546,-389.51,0.0001089,2]
[335165762,1723917040556,-389.51,0.0001089,2]
[335165764,1723917040565,-389.51,0.0001089,2]
[335165766,1723917040576,-389.51,0.0001089,2]
[335165768,1723917040586,-389.51,0.0001089,2]
[335165770,1723917040596,-389.51,0.0001089,2]
[335165772,1723917040606,-61203.78090469,0.00010892,2]
[335165774,1723917040618,-28922.52919531,0.00010892,2]
[335165776,1723917040627,-500.0,0.00010894,2]
[335165778,1723917040637,-3626.50308512,0.00010899,2]
[335165780,1723917040647,-3626.50308506,0.00010899,2]
[335165782,1723917040657,-3626.50308506,0.00010899,2]
[335165784,1723917040666,-3626.50308506,0.00010899,2]
[335165786,1723917040676,-3626.50308506,0.00010899,2]
[335165788,1723917040686,-3626.50308506,0.00010899,2]
[335165790,1723917040695,-3626.50308506,0.00010899,2]
[335165792,1723917040705,-3626.50308506,0.00010899,2]
[335165794,1723917040715,-3626.50308506,0.00010899,2]
[335165796,1723917040725,-150.0,0.000109,2]